bitfinex-derivatives/quotes_BTCF0:USTF0_20251209
["timestamp","ask_amount","ask_price","bid_price","bid_amount"]
[1765290841953,0.00510663,90365.0,90350.0,0.01123424]
[1765290842151,0.00510663,90365.0,90351.0,0.25236]
[1765290842355,0.01010663,90365.0,90361.0,0.0110668]
[1765290843460,0.00110632,90390.0,90368.0,0.011066]
[1765290843661,0.00110632,90390.0,90385.0,0.0110639]
[1765290843863,0.00110632,90390.0,90370.0,0.19689753]
[1765290843864,0.00110632,90390.0,90388.0,0.0110635]
[1765290844561,0.00816802,90404.0,90384.0,0.0110641]
[1765290844751,0.002,90390.0,90385.0,0.00016594]
[1765290844949,0.002,90390.0,90389.0,0.3608]
[1765290845562,0.002,90390.0,90389.0,0.7216]
[1765290845757,0.05945638,90456.0,90414.0,0.0110604]
[1765290845961,0.0110575,90438.0,90414.0,0.0110604]
[1765290846158,0.00110571,90440.0,90414.0,0.0110604]
[1765290846358,0.00110571,90440.0,90437.0,0.0110575]
[1765290846558,0.00110571,90440.0,90438.0,0.0110574]
[1765290847061,0.00110541,90465.0,90452.0,0.0110557]
[1765290847252,0.00110541,90465.0,90449.0,0.00016584]
[1765290847655,0.00110541,90465.0,90450.0,0.011056]
[1765290847864,0.00110541,90465.0,90459.0,0.0110548]
[1765290848058,0.00110541,90465.0,90463.0,0.0110543]
[1765290848258,0.0011051,90490.0,90470.0,0.0110535]
[1765290848465,0.0011051,90490.0,90479.0,0.0110523]
[1765290848668,0.0011051,90490.0,90472.0,0.0110532]
[1765290848967,0.0011051,90490.0,90471.0,0.00016584]
[1765290849154,0.0110513,90489.0,90471.0,0.00016584]
[1765290849567,0.19800263,90490.0,90471.0,0.00016584]
[1765290849763,0.0110519,90484.0,90471.0,0.00016584]
[1765290850060,0.19800263,90490.0,90471.0,0.00016584]
[1765290850268,0.0011051,90490.0,90471.0,0.00016584]
[1765290850462,0.0110514,90488.0,90471.0,0.00016584]
[1765290850663,0.0110529,90476.0,90471.0,0.00416584]
[1765290851070,0.0110546,90462.0,90444.0,0.00196]
[1765290851369,0.0011051,90490.0,90439.0,0.5078]
[1765290851370,0.0110539,90468.0,90439.0,0.5078]
[1765290851666,0.0110539,90467.0,90441.0,0.0110571]
[1765290851871,0.0110544,90464.0,90439.0,0.5078]
[1765290852065,0.0001645,90461.0,90444.0,0.0110567]
[1765290852462,0.0001645,90461.0,90442.0,0.00016584]
[1765290852671,0.20795333,90452.0,90442.0,0.00016584]
[1765290852976,0.0001645,90461.0,90442.0,0.00016584]
[1765290853361,0.19689753,90460.0,90442.0,0.00016584]
[1765290853561,0.19689753,90452.0,90442.0,0.00016584]
[1765290853859,0.0001645,90461.0,90442.0,0.00016584]
[1765290854177,0.0001645,90461.0,90453.0,0.0110556]
[1765290854360,0.0001645,90461.0,90457.0,0.011055]
[1765290854962,0.0121562,90490.0,90457.0,0.4]
[1765290855174,0.19800263,90490.0,90466.0,0.011054]
[1765290855471,0.0110512,90489.0,90466.0,0.011054]
[1765290855770,0.19800263,90490.0,90466.0,0.011054]
[1765290855979,0.0011051,90490.0,90482.0,0.0110521]
[1765290856274,0.0011051,90490.0,90472.0,0.0110533]
[1765290856471,0.0011051,90490.0,90470.0,0.19689753]
[1765290856786,0.0011051,90490.0,90469.0,0.00016584]
[1765290856787,0.0110514,90488.0,90469.0,0.00016584]
[1765290856976,0.0011051,90490.0,90469.0,0.00016584]
[1765290857163,0.0011051,90490.0,90470.0,0.19689753]
[1765290857359,0.0021051,90490.0,90470.0,0.19689753]
[1765290857581,0.0021051,90490.0,90481.0,0.0110521]
[1765290857762,0.0011051,90490.0,90469.0,0.00016584]
[1765290857965,0.0011051,90490.0,90470.0,0.19689753]
[1765290858173,0.0011051,90490.0,90469.0,0.00216584]
[1765290858366,0.19689753,90480.0,90469.0,0.00216584]
[1765290858671,0.0011051,90490.0,90433.0,1.00696]
[1765290858672,0.0110519,90484.0,90440.0,0.19689753]
[1765290858877,0.0011051,90490.0,90458.0,0.011055]
[1765290858878,0.20794993,90480.0,90458.0,0.011055]
[1765290859080,0.0110545,90463.0,90433.0,1.00696]
[1765290859271,0.19689753,90460.0,90434.0,0.51908]
[1765290859476,0.00016584,90456.0,90438.0,0.00016584]
[1765290859778,0.00016584,90456.0,90439.0,0.0110573]
[1765290860280,0.00016584,90456.0,90438.0,0.00016584]
[1765290860281,0.19689753,90450.0,90438.0,0.00016584]
[1765290860579,0.00016584,90456.0,90438.0,0.00816584]
[1765290860881,0.00016584,90456.0,90453.0,0.0110555]
[1765290861075,0.0110501,90499.0,90480.0,0.0110523]
[1765290861372,0.0121562,90490.0,90460.0,0.19689753]
[1765290861574,0.20905373,90490.0,90454.0,0.5300554]
[1765290861771,0.0011051,90490.0,90471.0,0.0110534]
[1765290862077,0.19800263,90490.0,90474.0,0.011053]
[1765290862373,0.0110521,90482.0,90471.0,0.00016584]
[1765290862575,0.19689753,90480.0,90471.0,0.00016584]
[1765290862877,0.0011051,90490.0,90479.0,0.0110524]
[1765290863067,0.20905383,90490.0,90474.0,0.011053]
[1765290863265,0.011053,90475.0,90471.0,0.00016584]
[1765290863570,0.0110547,90461.0,90460.0,0.002]
[1765290863983,0.0110559,90452.0,90433.0,0.0110581]
[1765290864179,0.0110559,90452.0,90436.0,0.0110576]
[1765290864364,0.0110554,90456.0,90436.0,0.0110576]
[1765290864570,0.19689753,90460.0,90424.0,0.0110591]
[1765290864769,0.00016584,90454.0,90451.0,0.0110558]
[1765290865068,0.00016584,90454.0,90448.0,0.0110562]
[1765290865383,0.00016584,90454.0,90436.0,0.00016584]
[1765290865681,0.13341831,90450.0,90436.0,0.00016584]
[1765290865865,0.0110575,90438.0,90436.0,0.00016584]
[1765290866681,0.0110575,90438.0,90436.0,0.00416584]
[1765290867177,0.4,90437.0,90436.0,0.01016584]
[1765290867377,0.0110593,90424.0,90401.0,0.011062]
[1765290867571,0.13341831,90416.0,90404.0,0.0110616]
[1765290867777,0.13341831,90416.0,90400.0,0.0110621]
[1765290867980,0.13341831,90416.0,90385.0,0.07336]
[1765290868173,0.0110605,90414.0,90390.0,0.0110633]
[1765290868375,0.13358424,90410.0,90392.0,0.0110631]
[1765290868573,0.13358424,90410.0,90391.0,0.00016593]
[1765290868772,0.011062,90401.0,90391.0,0.00016593]
[1765290868969,7.934e-05,90400.0,90391.0,0.00016593]
[1765290870483,7.934e-05,90400.0,90391.0,0.01122903]
[1765290870678,7.934e-05,90400.0,90391.0,0.02122903]
[1765290870679,0.00107934,90400.0,90391.0,0.02122903]
[1765290871080,0.00107934,90400.0,90391.0,0.01016593]
[1765290872182,0.00107934,90400.0,90392.0,0.3608]
[1765290872481,0.0110628,90395.0,90391.0,0.01016593]
[1765290872673,0.3608,90397.0,90391.0,0.01016593]
[1765290873073,0.3608,90397.0,90391.0,0.00616593]
[1765290873279,0.3718625,90397.0,90392.0,0.011]
[1765290873486,0.3608,90397.0,90392.0,0.011]
[1765290873883,0.3618,90397.0,90392.0,0.005]
[1765290874085,0.3618,90397.0,90391.0,0.01116593]
[1765290874478,0.3618,90397.0,90392.0,0.006]
[1765290875287,0.0110626,90396.0,90392.0,0.006]
[1765290875681,0.3618,90397.0,90392.0,0.006]
[1765290875988,0.0110626,90396.0,90392.0,0.011]
[1765290876178,0.0110641,90384.0,90382.0,0.3608]
[1765290876380,0.0001264,90383.0,90382.0,0.3608]
[1765290877288,0.0110647,90379.0,90373.0,0.36096593]
[1765290877589,0.0110651,90376.0,90373.0,0.36096593]
[1765290878282,0.0110653,90374.0,90373.0,0.00016593]
[1765290879788,0.36088362,90375.0,90373.0,0.01123133]
[1765290879789,8.362e-05,90375.0,90373.0,0.01123133]
[1765290879980,0.003,90379.0,90378.0,0.0110648]
[1765290880288,0.13341831,90420.0,90412.0,0.0110606]
[1765290880487,0.13341831,90430.0,90400.0,0.13341831]
[1765290880678,0.13341831,90422.0,90405.0,0.0110615]
[1765290880983,0.13341831,90415.0,90402.0,0.0110618]
[1765290881184,5.837e-05,90421.0,90401.0,0.011062]
[1765290881491,0.00016593,90420.0,90408.0,0.011061]
[1765290881698,0.00016593,90420.0,90402.0,0.00016593]
[1765290881699,0.00016593,90420.0,90412.0,0.0110606]
[1765290881987,0.00016593,90420.0,90419.0,0.0110598]
[1765290882578,0.00016593,90420.0,90405.0,0.002]
[1765290882891,0.13358424,90420.0,90419.0,0.3608]
[1765290883185,0.01122563,90420.0,90419.0,0.3618]
[1765290883393,0.01122563,90420.0,90419.0,0.001]
[1765290883590,0.01122563,90420.0,90401.0,0.002]
[1765290883591,0.0110618,90403.0,90401.0,0.002]
[1765290883889,0.01112017,90403.0,90379.0,0.4782]
[1765290884283,0.01112017,90403.0,90389.0,0.0110635]
[1765290884487,0.01112017,90403.0,90393.0,0.011063]
[1765290884488,5.837e-05,90403.0,90393.0,0.011063]
[1765290884679,5.837e-05,90403.0,90398.0,0.3608]
[1765290884883,5.837e-05,90403.0,90400.0,0.3608]
[1765290885689,5.837e-05,90403.0,90402.0,0.01122783]
[1765290885997,0.00305837,90403.0,90402.0,0.00316593]
[1765290886492,0.00305837,90403.0,90402.0,0.00216593]
[1765290886690,5.837e-05,90403.0,90402.0,0.00116593]
[1765290886890,5.837e-05,90403.0,90402.0,0.00316593]
[1765290887782,5.837e-05,90403.0,90402.0,0.00216593]
[1765290887987,0.00105837,90403.0,90402.0,0.00416593]
[1765290889387,0.00105837,90403.0,90402.0,0.00616593]
[1765290889702,0.00105837,90403.0,90402.0,0.00416593]
[1765290889895,5.837e-05,90403.0,90402.0,0.00216593]
[1765290890090,5.837e-05,90403.0,90402.0,0.00416593]
[1765290890285,5.837e-05,90403.0,90391.0,0.3608]
[1765290890286,0.0110631,90392.0,90391.0,0.3608]
[1765290890489,0.0110634,90390.0,90350.0,0.64170174]
[1765290890796,0.13341831,90390.0,90376.0,0.011065]
[1765290890991,0.0110638,90386.0,90382.0,0.3608]
[1765290891506,0.0110642,90383.0,90382.0,0.3608]
[1765290892295,0.0110642,90383.0,90382.0,0.002]
[1765290892493,0.0110659,90369.0,90368.0,0.3608]
[1765290892694,5.837e-05,90369.0,90348.0,0.0001257]
[1765290893001,0.011068,90352.0,90350.0,0.3608]
[1765290893193,5.837e-05,90351.0,90350.0,0.3608]
[1765290895391,0.00105837,90351.0,90350.0,0.3608]
[1765290895703,0.00505837,90351.0,90350.0,0.3618]
[1765290895997,0.00105837,90351.0,90350.0,0.3608]
[1765290896199,0.0110692,90342.0,90341.0,0.00016593]
[1765290896601,0.0110691,90343.0,90341.0,0.00016593]
[1765290896905,0.3608,90342.0,90323.0,0.3608]
[1765290897095,0.0110698,90338.0,90323.0,0.3608]
[1765290897287,0.13341831,90333.0,90332.0,0.3608]
[1765290897492,9.022e-05,90337.0,90332.0,0.3608]
[1765290898000,0.01107,90336.0,90332.0,0.3608]
[1765290898296,0.01107,90336.0,90306.0,0.02948343]
[1765290898297,0.3608,90333.0,90305.0,0.3608]
[1765290898501,0.13341831,90315.0,90305.0,0.3608]
[1765290898803,0.00012694,90314.0,90305.0,0.3608]
[1765290898999,0.00012694,90314.0,90308.0,0.0110733]
[1765290899194,0.00012694,90314.0,90311.0,0.011073]
[1765290899904,0.00012694,90314.0,90313.0,0.3608]
[1765290901007,0.00012694,90314.0,90306.0,0.0110736]
[1765290901501,0.00112694,90314.0,90313.0,0.002]
[1765290901693,0.36192694,90314.0,90313.0,0.002]
[1765290901896,0.36092694,90314.0,90313.0,0.002]
[1765290902091,0.0110742,90301.0,90300.0,0.00011073]
[1765290902402,0.0110742,90301.0,90285.0,0.3608]
[1765290902403,0.00010239,90301.0,90275.0,0.0110774]
[1765290902706,0.3608,90291.0,90277.0,0.3608]
[1765290903003,0.13341831,90300.0,90290.0,0.3608]
[1765290903299,0.00010239,90301.0,90300.0,0.0110744]
[1765290903300,0.00110239,90301.0,90300.0,0.0110744]
[1765290903692,0.13341831,90330.0,90290.0,0.13341831]
[1765290903891,0.13341831,90320.0,90317.0,0.0110722]
[1765290904102,0.13341831,90340.0,90324.0,0.0110714]
[1765290904297,0.13341831,90340.0,90303.0,0.0110739]
[1765290904494,0.13341831,90340.0,90288.0,0.0110758]
[1765290904495,0.14448901,90330.0,90286.0,0.435996]
[1765290904807,0.0110681,90352.0,90310.0,0.3608]
[1765290904808,0.0110729,90313.0,90310.0,0.3608]
[1765290905004,0.0110729,90313.0,90300.0,0.001]
[1765290905005,8.168e-05,90312.0,90302.0,0.00016613]
[1765290905200,8.168e-05,90312.0,90309.0,0.0110732]
[1765290905403,0.00016613,90321.0,90320.0,0.0110719]
[1765290905898,0.001,90330.0,90329.0,0.0110708]
[1765290906098,0.13341831,90350.0,90341.0,0.0110693]
[1765290906296,0.13341831,90370.0,90340.0,0.13341831]
[1765290906508,0.0110639,90386.0,90350.0,0.14448651]
[1765290906696,0.13341831,90390.0,90360.0,0.13341831]
[1765290907013,0.00016603,90384.0,90366.0,0.00016603]
[1765290907604,0.13341831,90380.0,90366.0,0.00016603]
[1765290907800,0.0110652,90376.0,90366.0,0.00016603]
[1765290908001,0.011066,90369.0,90366.0,0.00016603]
[1765290908201,0.0110654,90374.0,90366.0,0.00116603]
[1765290908401,0.13341831,90380.0,90366.0,0.00216603]
[1765290908596,0.00116603,90384.0,90366.0,0.00216603]
[1765290908797,0.0110682,90351.0,90328.0,0.0110709]
[1765290909102,0.0110682,90351.0,90302.0,0.05081818]
[1765290909103,0.13341831,90340.0,90309.0,0.51412]
[1765290909327,0.13341831,90330.0,90320.0,0.0110718]
[1765290909502,0.13341831,90330.0,90310.0,0.0110731]
[1765290909503,0.0110709,90329.0,90310.0,0.0110731]
[1765290909707,0.13341831,90320.0,90309.0,0.51412]
[1765290909900,0.00016603,90324.0,90309.0,0.51412]
[1765290910213,0.00016603,90326.0,90309.0,0.51412]
[1765290912297,0.0110667,90363.0,90352.0,0.00016603]
[1765290912497,0.13341831,90362.0,90352.0,0.00016603]
[1765290912899,0.0110673,90358.0,90352.0,0.00016603]
[1765290913095,0.13358434,90370.0,90356.0,0.0110675]
[1765290913299,0.14465014,90370.0,90352.0,0.00016603]
[1765290913505,0.13358434,90370.0,90352.0,0.00016603]
[1765290913807,0.0110678,90354.0,90352.0,0.00016603]
[1765290914017,0.008,90357.0,90352.0,0.00016603]
[1765290914197,0.0110671,90360.0,90352.0,0.00016603]
[1765290914397,0.13441831,90362.0,90352.0,0.00016603]
[1765290914398,0.001,90362.0,90353.0,0.0110679]
[1765290914603,0.3608,90365.0,90362.0,0.0110667]
[1765290914802,0.00016603,90370.0,90368.0,0.011066]
[1765290915003,0.3608,90396.0,90369.0,0.4]
[1765290915199,0.3608,90396.0,90393.0,0.0110629]
[1765290915403,0.3608,90396.0,90392.0,0.0110631]
[1765290915602,0.3608,90407.0,90395.0,0.0110627]
[1765290915803,0.3608,90407.0,90388.0,0.3608]
[1765290915804,0.3608,90407.0,90390.0,0.13341831]
[1765290916014,0.13341831,90420.0,90390.0,0.13341831]
[1765290916201,0.14447801,90420.0,90380.0,0.0110645]
[1765290916511,0.13341831,90410.0,90396.0,0.01122853]
[1765290916712,0.01122643,90414.0,90396.0,0.00016593]
[1765290916909,0.00016593,90414.0,90396.0,0.00016593]
[1765290917610,0.00016593,90414.0,90412.0,0.0110605]
[1765290917915,0.001,90407.0,90406.0,0.0110614]
[1765290918213,0.00016593,90414.0,90411.0,0.0110607]
[1765290918510,0.3608,90440.0,90413.0,0.3608]
[1765290918711,0.3608,90448.0,90438.0,0.0110574]
[1765290919010,0.3608,90459.0,90442.0,0.3608]
[1765290919212,0.3608,90451.0,90438.0,0.0110574]
[1765290919421,0.3608,90443.0,90425.0,0.3608]
[1765290919610,0.3608,90451.0,90436.0,0.0110576]
[1765290919802,0.00016584,90443.0,90436.0,0.3608]
[1765290920110,0.3718572,90440.0,90425.0,0.00016584]
[1765290920315,0.00016584,90443.0,90426.0,0.3608]
[1765290920499,0.00016584,90443.0,90434.0,0.3718579]
[1765290920704,0.003,90440.0,90434.0,0.3608]
[1765290920899,0.3608,90435.0,90426.0,0.3608]
[1765290921098,0.003,90440.0,90425.0,0.00016584]
[1765290921306,0.7216,90426.0,90425.0,0.00216584]
[1765290921721,0.0110587,90429.0,90425.0,0.00216584]
[1765290922011,0.00116584,90443.0,90434.0,0.001]
[1765290922613,0.01122274,90443.0,90434.0,0.001]
[1765290922806,0.00016584,90443.0,90434.0,0.001]
[1765290923005,0.00016584,90443.0,90438.0,0.0110574]
[1765290923206,0.00016584,90443.0,90434.0,0.0120579]
[1765290923706,0.00016584,90443.0,90430.0,0.3608]
[1765290924108,0.3608,90437.0,90425.0,0.00116584]
[1765290924325,0.3718576,90437.0,90425.0,0.00016584]
[1765290924510,0.011058,90434.0,90425.0,0.00016584]
[1765290924812,0.3608,90437.0,90425.0,0.00016584]
[1765290925005,0.3608,90437.0,90430.0,0.001]
[1765290925512,0.00116584,90443.0,90430.0,0.001]
[1765290925915,0.3608,90436.0,90425.0,0.00016584]
[1765290926213,0.0110582,90432.0,90425.0,0.00016584]
[1765290926407,0.3608,90428.0,90425.0,0.00016584]
[1765290926608,0.0110588,90427.0,90425.0,0.00016584]
[1765290927008,0.3608,90428.0,90401.0,0.3608]
[1765290927009,0.0110608,90412.0,90401.0,0.3608]
[1765290927209,0.3608,90405.0,90391.0,0.3718632]
[1765290927409,0.3608,90405.0,90402.0,0.0110618]
[1765290927616,0.3608,90428.0,90402.0,0.0110618]
[1765290927617,0.3608,90415.0,90402.0,0.0110618]
[1765290927816,0.3608,90428.0,90404.0,0.3608]
[1765290928017,0.3608,90418.0,90407.0,0.00016593]
[1765290928314,0.00016593,90425.0,90421.0,0.0110595]
[1765290928513,0.00016593,90425.0,90414.0,0.3608]
[1765290928715,0.00016593,90425.0,90407.0,0.00016593]
[1765290928916,0.00016593,90425.0,90418.0,0.0110599]
[1765290929218,0.001,90418.0,90413.0,0.0110604]
[1765290929418,0.001,90418.0,90412.0,0.3608]
[1765290929615,0.001,90418.0,90408.0,0.0110611]
[1765290929821,0.3618,90418.0,90407.0,0.00316593]
[1765290930017,0.3618,90418.0,90417.0,0.01106]
[1765290930216,0.001,90418.0,90417.0,0.01106]
[1765290930523,0.001,90418.0,90414.0,0.0110604]
[1765290930717,0.001,90418.0,90416.0,0.0110601]
[1765290931115,0.00116593,90425.0,90416.0,0.0110601]
[1765290931309,0.00116593,90425.0,90424.0,0.0110592]
[1765290931510,0.00116593,90425.0,90424.0,0.3608]
[1765290931716,0.00016593,90425.0,90424.0,0.3608]
[1765290931912,0.00016593,90425.0,90414.0,0.002]
[1765290932110,0.3608,90422.0,90414.0,0.002]
[1765290932424,0.00016593,90425.0,90415.0,0.0110603]
[1765290932619,0.00016593,90425.0,90418.0,0.0110599]
[1765290933020,0.00016593,90425.0,90420.0,0.0110596]
[1765290933318,0.00016593,90425.0,90416.0,0.001]
[1765290933525,0.00016593,90425.0,90416.0,0.0120601]
[1765290933820,0.00016593,90425.0,90423.0,0.0110592]
[1765290934026,0.00016593,90425.0,90424.0,0.3608]
[1765290934222,0.011055,90459.0,90425.0,0.011059]
[1765290934418,0.011055,90459.0,90414.0,0.002]
[1765290934419,0.3608,90453.0,90440.0,0.3608]
[1765290934618,0.0110558,90452.0,90440.0,0.3608]
[1765290934819,0.3608,90443.0,90432.0,0.0110581]
[1765290935019,0.371857,90443.0,90430.0,0.0110584]
[1765290935223,0.3608,90443.0,90427.0,0.00016584]
[1765290935422,0.0110573,90439.0,90427.0,0.00016584]
[1765290935725,0.3608,90443.0,90427.0,0.00016584]
[1765290935726,0.3608,90435.0,90427.0,0.00016584]
[1765290935924,0.3608,90443.0,90427.0,0.00016584]
[1765290936126,0.3608,90441.0,90427.0,0.00016584]
[1765290936521,0.3608,90441.0,90427.0,0.01122464]
[1765290936730,0.00016584,90446.0,90434.0,0.3608]
[1765290936922,0.001,90435.0,90434.0,0.371858]
[1765290937822,0.001,90435.0,90434.0,0.3608]
[1765290938331,0.004,90435.0,90434.0,0.3618]
[1765290938934,0.3608,90469.0,90468.0,0.0110538]
[1765290939822,0.3608,90469.0,90459.0,0.0110549]
[1765290940027,0.3608,90469.0,90458.0,0.3608]
[1765290940327,0.00016584,90473.0,90458.0,0.3608]
[1765290940328,0.00016584,90473.0,90470.0,0.0110535]
[1765290940531,0.00016584,90473.0,90470.0,0.3718535]
[1765290941731,0.00316584,90473.0,90470.0,0.3718535]
[1765290942229,0.00316584,90473.0,90459.0,0.3608]
[1765290942527,0.3608,90465.0,90459.0,0.0110549]
[1765290942728,0.01441226,90473.0,90445.0,0.0110566]
[1765290942729,0.00335896,90473.0,90445.0,0.0110566]
[1765290942925,0.00335896,90473.0,90451.0,0.0110558]
[1765290943119,0.00335896,90473.0,90462.0,0.3608]
[1765290943323,0.00235896,90473.0,90462.0,0.3608]
[1765290943535,0.0110537,90470.0,90456.0,0.0110552]
[1765290943735,0.00235896,90473.0,90456.0,0.0110553]
[1765290943736,0.19568389,90472.0,90456.0,0.0110553]
[1765290943920,0.001,90473.0,90460.0,0.3718547]
[1765290944120,0.3608,90476.0,90465.0,0.0110541]
[1765290944428,0.36091023,90477.0,90460.0,0.3608]
[1765290944629,0.36091023,90477.0,90475.0,0.0110529]
[1765290944821,0.00011023,90477.0,90475.0,0.0110529]
[1765290945426,0.0011051,90490.0,90489.0,0.0110512]
[1765290946322,0.0011051,90490.0,90485.0,0.0110517]
[1765290946634,0.0061051,90490.0,90487.0,0.0110514]
[1765290947223,0.0061051,90490.0,90480.0,0.5204]
[1765290947224,0.0041051,90490.0,90481.0,0.0110522]
[1765290947530,0.0071051,90490.0,90480.0,0.5204]
[1765290947732,0.0071051,90490.0,90481.0,0.0110522]
[1765290948035,0.3608,90488.0,90478.0,0.00016584]
[1765290948738,0.0110515,90487.0,90478.0,0.00016584]
[1765290949032,0.3608,90479.0,90478.0,0.00016584]
[1765290949231,0.3608,90479.0,90449.0,0.3718561]
[1765290949427,0.3608,90467.0,90461.0,0.0110546]
[1765290949622,0.3608,90467.0,90449.0,0.3608]
[1765290949831,0.0110553,90456.0,90449.0,0.3608]
[1765290950339,0.3608,90459.0,90443.0,0.00016584]
[1765290950340,0.3608,90451.0,90443.0,0.00016584]
[1765290950527,0.0110567,90445.0,90443.0,0.00016584]
[1765290951031,0.7216,90451.0,90443.0,0.00016584]
[1765290951424,0.001,90456.0,90449.0,0.007]
[1765290951630,0.001,90456.0,90454.0,0.0110555]
[1765290951833,0.001,90456.0,90453.0,0.0110556]
[1765290952026,0.3608,90464.0,90456.0,0.0110553]
[1765290952342,0.3608,90464.0,90447.0,0.3718563]
[1765290952538,0.0110545,90463.0,90461.0,0.001]
[1765290953233,0.3608,90464.0,90461.0,0.001]
[1765290953432,0.3608,90464.0,90447.0,0.3608]
[1765290953633,0.3608,90464.0,90459.0,0.0110548]
[1765290953836,0.3608,90482.0,90459.0,0.0110548]
[1765290954037,0.19568389,90480.0,90459.0,0.0110548]
[1765290954373,0.3608,90482.0,90475.0,0.0110529]
[1765290954547,0.3608,90482.0,90467.0,0.3608]
[1765290954930,0.3608,90482.0,90470.0,0.0110536]
[1765290955141,0.3608,90482.0,90472.0,0.0110532]
[1765290955339,0.3608,90482.0,90467.0,0.3608]
[1765290955642,0.002,90482.0,90481.0,0.0110522]
[1765290956030,0.004,90482.0,90478.0,0.0110525]
[1765290956430,0.004,90482.0,90476.0,0.3608]
[1765290956640,0.004,90482.0,90469.0,0.0110537]
[1765290956942,0.19568389,90480.0,90467.0,0.3608]
[1765290957740,0.3608,90478.0,90467.0,0.3608]
[1765290957932,0.0110527,90477.0,90467.0,0.3608]
[1765290958138,0.3608,90478.0,90467.0,0.3608]
[1765290958336,0.3608,90478.0,90458.0,0.88116]
[1765290958541,0.011054,90467.0,90458.0,0.3608]
[1765290958848,0.011054,90467.0,90452.0,0.3608]
[1765290959547,0.3608,90469.0,90454.0,0.0110555]
[1765290959548,0.3718537,90469.0,90454.0,0.0110555]
[1765290959851,0.3608,90472.0,90459.0,0.0110549]
[1765290960031,0.001,90467.0,90460.0,0.3608]
[1765290960532,0.0120539,90467.0,90452.0,0.3608]
[1765290960745,0.001,90467.0,90460.0,0.3608]
[1765290960935,0.001,90467.0,90464.0,0.0110543]
[1765290961144,0.001,90467.0,90466.0,0.011054]
[1765290961446,0.00019757,90467.0,90466.0,0.011054]
[1765290961746,0.0011051,90490.0,90489.0,0.0110512]
[1765290962143,0.0011051,90490.0,90489.0,0.3718512]
[1765290962331,0.05,90500.0,90499.0,0.01105]
[1765290962535,0.05,90500.0,90499.0,0.37185]
[1765290962841,0.05,90500.0,90499.0,0.3608]
[1765290963143,0.05,90500.0,90490.0,0.36096584]
[1765290963349,0.24568389,90500.0,90490.0,0.00016584]
[1765290963548,0.05,90500.0,90490.0,0.36096584]
[1765290963854,0.055,90500.0,90490.0,0.00016584]
[1765290964034,0.055,90500.0,90499.0,0.01105]
[1765290964231,0.055,90500.0,90495.0,0.0110504]
[1765290964429,0.055,90500.0,90492.0,0.3608]
[1765290964430,0.053,90500.0,90492.0,0.3608]
[1765290964833,0.0110507,90493.0,90490.0,0.00016584]
[1765290965045,0.057,90500.0,90490.0,0.00016584]
[1765290965046,0.011051,90491.0,90490.0,0.00016584]
[1765290965435,0.0110548,90460.0,90459.0,0.3608]
[1765290965631,0.05936907,90465.0,90423.0,0.00013131]
[1765290965838,0.20673999,90450.0,90423.0,0.00013131]
[1765290966033,0.0110555,90454.0,90423.0,0.00013131]
[1765290966338,0.07042257,90471.0,90452.0,0.0110556]
[1765290966643,0.07042257,90471.0,90455.0,0.0110553]
[1765290966644,0.00016584,90471.0,90455.0,0.0110553]
[1765290966834,0.00016584,90471.0,90461.0,0.0110546]
[1765290967034,0.0110543,90464.0,90459.0,0.002]
[1765290967231,0.0110546,90462.0,90459.0,0.002]
[1765290968139,0.0110536,90470.0,90459.0,0.002]
[1765290968333,0.01121934,90471.0,90459.0,0.002]
[1765290968647,0.00016584,90471.0,90455.0,0.0120554]
[1765290968940,0.00016584,90471.0,90455.0,0.005]
[1765290969144,0.00016584,90471.0,90467.0,0.0110538]
[1765290969370,0.00016584,90471.0,90470.0,0.3608]
[1765290969537,0.00016584,90471.0,90467.0,0.3718538]
[1765290970031,0.00016584,90471.0,90459.0,0.003]
[1765290970235,0.00016584,90471.0,90457.0,0.0110551]
[1765290970545,0.00016584,90471.0,90455.0,0.002]
[1765290970546,0.3608,90458.0,90455.0,0.002]
[1765290970746,0.3608,90466.0,90455.0,0.002]
[1765290971044,0.3718551,90458.0,90455.0,0.002]
[1765290971948,0.3718551,90458.0,90444.0,0.3608]
[1765290972247,0.0110555,90454.0,90444.0,0.3608]
[1765290973046,0.0110555,90454.0,90452.0,0.00516584]
[1765290973550,0.05936907,90466.0,90457.0,0.0110551]
[1765290973731,0.1490267,90500.0,90499.0,0.01105]
[1765290973937,1e-07,90500.0,90499.0,0.78077]
[1765290974151,0.0990267,90566.0,90514.0,0.0110482]
[1765290974342,0.3608,90559.0,90538.0,0.3608]
[1765290974647,0.3608,90559.0,90546.0,0.3608]
[1765290974843,0.3608,90576.0,90547.0,0.0110442]
[1765290975244,0.3608,90586.0,90563.0,0.0110421]
[1765290975847,0.01501015,90600.0,90571.0,0.0110411]
[1765290976037,0.01501015,90600.0,90576.0,0.00016563]
[1765290976232,0.01501015,90600.0,90576.0,0.01120613]
[1765290976437,0.01501015,90600.0,90580.0,0.0110401]
[1765290976647,0.01501015,90600.0,90576.0,0.00016563]
[1765290976848,0.01501015,90600.0,90576.0,0.01120623]
[1765290977147,0.01501015,90600.0,90576.0,0.00016563]
[1765290977647,0.01501015,90600.0,90584.0,0.0110396]
[1765290977841,0.01601015,90600.0,90576.0,0.00016563]
[1765290978153,0.01601015,90600.0,90581.0,0.01104]
[1765290978442,0.3608,90586.0,90584.0,0.0110396]
[1765290978646,0.3608,90586.0,90578.0,0.0110403]
[1765290978847,0.3608,90586.0,90576.0,0.00016563]
[1765290979035,0.3608,90577.0,90576.0,0.00016563]
[1765290979240,0.3608,90586.0,90576.0,0.00016563]
[1765290979655,0.3658,90586.0,90577.0,0.0110405]
[1765290979951,0.3658,90586.0,90581.0,0.001]
[1765290980340,0.3658,90586.0,90576.0,0.00016563]
[1765290980539,0.3608,90577.0,90576.0,0.00016563]
[1765290980848,0.0110414,90570.0,90552.0,0.3608]
[1765290981047,0.3608,90568.0,90552.0,0.3608]
[1765290981249,0.3608,90577.0,90552.0,0.3608]
[1765290981441,0.3608,90577.0,90542.0,0.0110447]
[1765290981442,0.01,90586.0,90569.0,0.3608]
[1765290981638,0.3608,90583.0,90568.0,0.00016563]
[1765290981840,0.01,90586.0,90576.0,0.0110405]
[1765290982040,0.004,90586.0,90576.0,0.0110405]
[1765290982246,0.007,90586.0,90581.0,0.001]
[1765290982755,0.002,90583.0,90568.0,0.00016563]
[1765290982945,0.3608,90574.0,90568.0,0.00016563]
[1765290983350,0.3718409,90574.0,90568.0,0.00016563]
[1765290983538,0.3608,90574.0,90568.0,0.00016563]